bitfinex-derivatives/quotes_BNBF0:USTF0_20250305
["timestamp","ask_amount","ask_price","bid_price","bid_amount"]
[1741165095430,2.62440511,597.76,596.71,0.29123641]
[1741165095626,2.62440511,597.76,596.52,1.46387861]
[1741165095627,2.62427102,597.75,596.82,1.21989884]
[1741165095832,2.62427102,597.74,596.83,0.29118209]
[1741165096028,2.62427102,597.73,596.83,0.29118209]
[1741165096233,1.19528777,597.74,596.83,0.29118209]
[1741165096435,3.81929951,597.73,596.83,0.29118209]
[1741165096628,1.19528777,597.73,596.83,0.29118209]
[1741165097030,1.19528777,597.72,596.83,0.29118209]
[1741165097534,2.62400582,597.74,596.84,0.29117973]
[1741165097834,0.29136944,597.76,596.85,0.29117973]
[1741165098134,2.62384823,597.75,596.86,0.29117973]
[1741165098331,2.62384823,597.74,596.87,0.29117973]
[1741165098537,6.82193175,597.73,596.83,0.29117973]
[1741165098736,6.82193175,597.72,596.84,0.29117973]
[1741165098933,6.82193175,597.71,596.83,0.29117973]
[1741165099131,6.82193175,597.7,596.84,0.29117973]
[1741165099329,6.82193175,597.69,596.83,0.29117973]
[1741165099534,6.82193175,597.68,596.84,0.29117973]
[1741165099729,6.82193175,597.67,596.83,0.29117973]
[1741165099929,6.82193175,597.66,596.84,0.29117973]
[1741165100131,6.82193175,597.65,596.83,0.29117973]
[1741165100335,2.62376162,597.64,596.84,0.29117973]
[1741165100529,2.62376162,597.63,596.83,0.29117973]
[1741165100732,1.19465803,597.65,596.84,0.29117973]
[1741165100932,1.19465803,597.63,596.83,0.29117973]
[1741165101134,1.19465803,597.63,596.84,0.29117973]
[1741165101334,1.19465803,597.63,596.85,0.29117973]
[1741165101534,0.29135724,597.74,596.86,0.29117973]
[1741165101834,3.81714643,597.73,596.87,0.29117973]
[1741165102033,2.62280099,597.72,596.87,0.29117973]
[1741165102335,2.62280099,597.71,596.88,0.29117973]
[1741165102632,3.81714643,597.7,596.89,0.29117973]
[1741165102936,2.62280099,597.69,596.9,0.29117973]
[1741165103131,1.19434544,597.7,596.85,0.29117973]
[1741165103336,1.19434544,597.68,596.86,0.29117973]
[1741165103538,1.19434544,597.68,596.87,0.29117973]
[1741165103740,0.29135724,597.74,596.88,1.51107857]
[1741165103939,2.62205028,597.73,596.89,0.29117973]
[1741165104139,2.62205028,597.72,596.89,0.29117973]
[1741165104336,2.62205028,597.71,596.9,0.29112377]
[1741165104540,2.62205028,597.7,596.91,0.29112377]
[1741165104738,2.62205028,597.69,596.89,0.29112377]
[1741165104939,1.19387998,597.71,596.9,0.29112377]
[1741165105141,1.19387998,597.68,596.89,0.29112377]
[1741165105641,1.19387998,597.67,596.89,0.29112377]
[1741165105937,1.19387998,597.67,596.91,0.29112377]
[1741165106141,1.19387998,597.67,596.92,0.29112377]
[1741165106335,0.29135724,597.74,596.92,0.29112377]
[1741165106540,0.29135724,597.74,596.84,1.21989884]
[1741165106741,0.29135724,597.74,596.85,0.2911221]
[1741165107441,2.62146489,597.87,596.86,0.2911221]
[1741165107640,2.95599136,597.86,596.68,0.2911221]
[1741165107840,0.29131821,597.73,596.75,0.29131821]
[1741165108036,2.62146489,597.84,596.76,0.2911221]
[1741165108234,0.94991774,597.83,596.67,1.21989884]
[1741165108440,3.81472107,597.82,596.68,0.29112276]
[1741165108639,2.62110178,597.81,596.69,0.29112276]
[1741165108835,1.4849436,597.82,596.7,0.29112276]
[1741165109038,2.62112164,597.81,596.71,0.29112276]
[1741165109242,1.19361929,597.8,596.72,0.29112276]
[1741165109441,1.19361929,597.8,596.73,0.29112276]
[1741165109634,0.29132431,597.82,596.74,0.29112276]
[1741165109835,0.29132431,597.82,596.75,0.29112276]
[1741165110036,1.19354209,597.81,596.76,0.29112276]
[1741165110242,1.19354209,597.81,596.77,0.29112276]
[1741165110435,1.19354209,597.81,596.78,0.29112276]
[1741165110635,1.19354209,597.81,596.63,1.21989884]
[1741165110636,1.24101776,597.8,596.79,0.29112276]
[1741165110837,0.94968613,597.79,596.8,0.29112276]
[1741165111144,2.62069424,597.78,596.81,0.29112276]
[1741165111339,0.29133163,597.8,596.82,0.29112276]
[1741165111643,1.19318394,597.77,596.83,0.29112276]
[1741165111842,0.29133163,597.8,596.84,0.29112276]
[1741165112044,0.29133163,597.8,596.85,0.29112276]
[1741165112244,0.29133163,597.8,596.86,0.29112276]
[1741165112446,1.19288891,597.79,596.87,0.29112276]
[1741165112744,1.19288891,597.79,596.88,0.29112276]
[1741165113045,1.19288891,597.79,596.89,0.29112276]
[1741165113345,0.29133163,597.8,596.9,0.29112276]
[1741165113545,0.33453207,597.85,596.91,0.29112276]
[1741165113747,3.8116054,597.84,596.64,0.29112276]
[1741165113947,2.61900789,597.83,596.65,0.62632765]
[1741165114149,1.19259751,597.84,596.71,1.21989884]
[1741165114150,2.61900789,597.82,596.71,1.21989884]
[1741165114353,2.61900789,597.81,596.72,0.29112276]
[1741165114547,1.19259751,597.82,596.73,0.29112276]
[1741165114747,1.19259751,597.8,596.74,0.29112276]
[1741165114947,1.19259751,597.8,596.75,0.29112276]
[1741165115250,0.29130846,597.81,596.76,0.29109215]
[1741165115448,0.29130846,597.81,596.72,0.29130846]
[1741165115449,0.29130846,597.81,596.77,0.29109215]
[1741165115650,0.29130846,597.81,596.78,0.29109215]
[1741165115852,0.29130846,597.81,596.79,0.29109215]
[1741165116051,0.29130846,597.81,596.8,0.29109215]
[1741165116450,0.29130846,597.81,596.81,0.29109215]
[1741165116747,0.29130846,597.81,596.72,0.29130846]
[1741165116950,0.29130846,597.81,596.73,0.29107928]
[1741165117151,0.29130846,597.81,596.74,0.29107928]
[1741165117347,0.29130846,597.81,596.75,0.29107928]
[1741165117547,0.29130846,597.81,596.76,0.29107928]
[1741165117751,0.29130846,597.81,596.77,0.29107928]
[1741165117948,0.29130846,597.81,596.78,0.29107928]
[1741165118152,0.29130846,597.81,596.79,0.29107928]
[1741165118353,0.29130846,597.81,596.8,0.29107928]
[1741165118553,0.29130846,597.81,596.81,0.2910801]
[1741165118755,0.29130846,597.81,596.82,0.2910801]
[1741165118953,0.29130846,597.81,596.83,0.2910801]
[1741165119153,0.29130846,597.81,596.84,0.2910801]
[1741165119354,0.29130846,597.81,596.85,0.2910801]
[1741165119552,0.33453207,597.85,596.86,0.2910801]
[1741165119747,0.33453207,597.85,596.87,0.2910801]
[1741165119948,0.29129261,597.82,596.88,0.2910801]
[1741165120147,0.29129261,597.82,596.89,0.2910801]
[1741165120348,0.29129261,597.82,596.9,0.2910801]
[1741165120554,0.29129261,597.82,596.91,0.2910801]
[1741165120753,0.29129261,597.82,596.92,0.2910801]
[1741165120950,0.29129261,597.82,596.78,0.2910801]
[1741165121154,0.29129261,597.82,596.79,0.2910801]
[1741165121453,0.29129261,597.82,596.8,0.2910801]
[1741165121650,0.29129261,597.82,596.81,0.2910801]
[1741165121856,0.29129261,597.82,596.77,0.29129261]
[1741165122156,0.29129261,597.82,596.78,0.29108082]
[1741165122351,0.29129261,597.82,596.79,0.29108082]
[1741165122556,0.33453207,597.85,596.8,0.29108082]
[1741165122749,0.33453207,597.85,596.81,0.29108082]
[1741165122949,0.29129017,597.82,596.82,0.29108082]
[1741165123148,0.29129017,597.82,596.83,0.29108082]
[1741165123455,0.29129017,597.82,596.84,0.29108082]
[1741165123652,0.29129017,597.82,596.78,0.29129017]
[1741165123851,0.29129017,597.82,596.79,0.29107213]
[1741165124054,0.29129017,597.82,596.8,0.29107213]
[1741165124256,0.29129017,597.82,596.81,0.29107213]
[1741165124456,0.29129017,597.82,596.82,0.29107213]
[1741165124656,0.29129017,597.82,596.83,0.29107213]
[1741165124854,0.29129017,597.82,596.95,1.21989884]
[1741165125055,0.29129017,597.82,596.96,0.29107213]
[1741165125558,0.33453207,597.85,596.96,0.29107213]
[1741165125857,0.29126335,597.83,596.96,0.29107213]
[1741165126758,0.29126335,597.83,596.97,1.21989884]
[1741165127157,0.29126335,597.83,596.98,0.29107213]
[1741165128456,0.29126335,597.83,596.98,1.51097097]
[1741165128657,0.29126335,597.83,596.99,0.29107213]
[1741165130457,2.61371088,597.82,596.99,0.29107213]
[1741165130661,2.61371088,597.81,596.99,0.29107213]
[1741165130863,2.94827093,597.8,597.06,1.21989884]
[1741165131161,2.94827653,597.79,597.07,0.29107213]
[1741165131363,2.61371088,597.78,597.07,0.29107213]
[1741165131663,2.61371088,597.77,597.07,0.29107213]
[1741165131859,2.47205079,597.76,597.07,0.29107213]
[1741165132057,1.52489863,597.76,597.07,0.29107213]
[1741165132462,0.99487742,598.03,597.07,0.29107213]
[1741165132463,0.33458803,597.75,597.07,0.29107213]
[1741165132662,0.62590015,597.75,597.07,0.29107213]
[1741165133763,0.62590015,597.75,596.86,0.29107213]
[1741165134063,0.62590015,597.75,596.87,0.29107213]
[1741165134261,0.62590015,597.75,596.86,0.29107213]
[1741165134462,0.33458803,597.75,596.87,0.29107213]
[1741165134662,0.33458803,597.75,596.86,0.29107213]
[1741165134962,0.33458803,597.75,596.87,0.29107213]
[1741165135162,0.33458803,597.75,596.86,0.29107213]
[1741165135364,0.33458803,597.75,596.87,0.29107213]
[1741165135565,0.33458803,597.75,596.88,0.29115954]
[1741165135762,0.29133529,597.74,596.81,0.29115954]
[1741165136059,0.33459923,597.73,596.82,0.29115954]
[1741165136263,0.33459923,597.73,596.83,0.29115954]
[1741165136464,0.33459923,597.73,596.8,1.21989884]
[1741165136465,0.33459923,597.73,596.84,0.29115954]
[1741165136658,0.33459923,597.73,596.81,0.29115954]
[1741165136859,0.94795363,597.72,596.82,0.29115954]
[1741165137060,0.94795363,597.71,596.81,0.29115954]
[1741165137266,0.33461602,597.7,596.83,0.29115954]
[1741165137565,1.52592851,597.7,596.84,0.29115954]
[1741165137765,0.29135968,597.69,596.81,0.29115954]
[1741165137968,1.81729379,597.69,596.82,0.29115954]
[1741165138165,1.81729379,597.69,596.81,0.29115954]
[1741165138366,0.6259813,597.69,596.73,0.29115954]
[1741165138566,0.6259813,597.69,596.72,1.21989884]
[1741165138567,0.6259813,597.69,596.74,0.29115954]
[1741165138865,0.6259813,597.69,596.74,0.29134504]
[1741165139064,0.6259813,597.69,596.75,0.29114607]
[1741165139763,0.6259813,597.69,596.76,1.21989884]
[1741165140163,0.6259813,597.69,596.77,0.29114607]
[1741165140567,0.33462162,597.69,596.76,1.21989884]
[1741165140763,0.33462162,597.69,596.77,0.29114506]
[1741165141664,0.62591789,597.69,596.77,0.29114506]
[1741165142264,0.62591789,597.69,596.78,0.29114506]
[1741165142470,0.62591789,597.69,596.76,0.29114506]
[1741165142670,0.62591789,597.69,596.77,0.29114506]
[1741165142975,0.62591789,597.69,596.78,0.29114506]
[1741165143168,0.62591789,597.69,596.79,0.29114506]
[1741165143372,0.33462162,597.69,596.8,0.29114506]
[1741165143573,0.33462162,597.69,596.75,0.29114506]
[1741165143774,0.62596422,597.69,597.06,1.21989884]
[1741165143969,0.62596422,597.69,597.07,0.29114506]
[1741165145372,0.62596422,597.69,597.06,0.29114506]
[1741165145568,0.62596422,597.69,597.07,0.29114506]
[1741165146073,0.62596422,597.69,597.08,0.29114506]
[1741165146272,0.62596422,597.69,597.06,0.29114506]
[1741165146468,0.62596422,597.69,597.05,1.21989884]
[1741165146469,0.62596422,597.69,597.07,0.29114506]
[1741165146671,0.33462162,597.69,597.06,0.29114506]
[1741165146871,0.33462162,597.69,597.07,0.29114506]
[1741165147072,0.33462162,597.69,597.06,0.29114506]
[1741165147270,0.33462162,597.69,597.07,0.29114506]
[1741165147674,0.33462162,597.69,596.81,0.29114506]
[1741165147879,0.33462162,597.69,596.89,0.29129871]
[1741165148073,0.33462162,597.69,596.82,0.29114506]
[1741165148276,0.33462162,597.69,596.83,0.29114506]
[1741165148471,0.33462162,597.69,596.84,0.29114506]
[1741165148676,0.33462162,597.69,596.85,0.29114506]
[1741165148873,0.33462162,597.69,596.86,0.29114506]
[1741165149078,0.33462162,597.69,596.87,0.29114506]
[1741165149279,0.33462162,597.69,596.88,0.29114506]
[1741165149473,0.33462162,597.69,596.89,0.29114506]
[1741165149874,0.33462162,597.69,596.9,0.29114506]
[1741165150179,0.33462162,597.69,596.91,0.29114506]
[1741165150380,0.33462162,597.69,596.92,0.29114506]
[1741165150680,0.33462162,597.69,597.15,1.21989884]
[1741165150878,0.33462162,597.69,597.16,0.29114506]
[1741165152579,0.33462162,597.69,597.17,0.29114506]
[1741165152877,0.33462162,597.69,596.94,1.21989884]
[1741165153079,0.33462162,597.69,596.95,0.29109739]
[1741165154075,0.33462162,597.69,596.96,0.29109739]
[1741165154277,0.33462162,597.69,596.97,0.29109739]
[1741165154478,0.33462162,597.69,596.94,0.29109739]
[1741165154779,0.33462162,597.69,596.95,0.29109739]
[1741165154980,0.33462162,597.69,596.96,0.29109739]
[1741165155175,0.33462162,597.69,596.94,0.29109739]
[1741165155372,0.33462162,597.69,596.95,0.29109739]
[1741165155575,0.33462162,597.69,596.96,0.29109739]
[1741165155780,0.33462162,597.69,596.97,0.29109739]
[1741165155980,0.33462162,597.69,596.98,0.29109739]
[1741165156176,0.33462162,597.69,596.95,0.29109739]
[1741165156379,0.33462162,597.69,596.94,1.21989884]
[1741165156579,0.33462162,597.69,596.95,0.29107496]
[1741165156781,0.33462162,597.69,596.96,0.29107496]
[1741165156975,0.33462162,597.69,596.95,0.29107496]
[1741165157179,0.33462162,597.69,596.96,0.29107496]
[1741165157376,0.33462162,597.69,596.95,0.29107496]
[1741165157581,0.33462162,597.69,596.96,0.29107496]
[1741165157777,0.33462162,597.69,596.95,0.29107496]
[1741165157982,0.33462162,597.69,596.96,0.29107496]
[1741165158780,0.33462162,597.69,596.97,0.29107496]
[1741165158977,0.33462162,597.69,596.98,0.29107496]
[1741165159182,0.33462162,597.69,596.96,0.29107496]
[1741165159478,0.33462162,597.69,596.97,0.29107496]
[1741165159678,0.33462162,597.69,596.98,0.29107496]
[1741165160078,0.33462162,597.69,596.99,0.29107496]
[1741165160283,0.33462162,597.69,597.0,0.29107496]
[1741165160478,0.33462162,597.69,596.96,0.29107496]
[1741165160679,0.33462162,597.69,596.97,0.29107496]
[1741165160881,0.33462162,597.69,596.98,0.29107496]
[1741165161085,0.33462162,597.69,596.96,0.29107496]
[1741165161281,0.33462162,597.69,596.97,0.29107496]
[1741165161486,0.33462162,597.69,596.96,0.29107496]
[1741165161682,0.33462162,597.69,596.97,0.29107496]
[1741165161881,0.33462162,597.69,596.96,0.29107496]
[1741165162085,0.33462162,597.69,596.97,0.29107496]
[1741165162282,0.33462162,597.69,596.98,0.29107496]
[1741165162481,0.33462162,597.69,596.99,0.29107496]
[1741165162686,0.33462162,597.69,597.0,0.29107496]
[1741165162881,0.33462162,597.69,596.96,0.29107496]
[1741165163091,0.33462162,597.69,596.97,0.29107496]
[1741165163289,0.33462162,597.69,596.94,0.29128042]
[1741165163487,0.33462162,597.69,596.95,0.29108674]
[1741165164787,0.33462162,597.69,596.96,0.29108674]
[1741165164990,0.33462162,597.69,596.84,0.29108674]
[1741165165188,0.33462162,597.69,596.85,0.29108674]
[1741165165392,0.33462162,597.69,596.86,0.29108674]
[1741165165586,0.33462162,597.69,596.87,0.29108674]
[1741165165788,0.33462162,597.69,596.88,0.29108674]
[1741165166188,0.33462162,597.69,596.87,0.29127433]
[1741165166989,0.33462162,597.69,596.89,0.29109458]
[1741165167186,0.33462162,597.69,596.9,0.29109458]
[1741165167390,0.33462162,597.69,596.91,0.29109458]
[1741165167585,0.33462162,597.69,596.83,1.21989884]
[1741165167586,0.33462162,597.69,596.88,0.29109458]
[1741165167791,0.33462162,597.69,596.85,1.21989884]
[1741165167991,0.33462162,597.69,596.86,0.29109437]
[1741165168789,0.33462162,597.69,596.87,0.29129139]
[1741165168993,0.33462162,597.69,596.88,0.29109437]
[1741165169996,0.33462162,597.69,596.95,1.21989884]
[1741165170188,0.33462162,597.69,596.96,0.29109437]
[1741165170792,0.62592642,597.69,596.96,0.29109437]
[1741165172291,0.62592642,597.69,596.98,1.21989884]
[1741165172488,0.62592642,597.69,596.99,0.29109437]
[1741165172997,0.33462162,597.69,596.99,0.29109437]
[1741165174494,0.33462162,597.69,596.88,0.29109437]
[1741165174695,0.33462162,597.69,596.89,0.29109437]
[1741165174894,0.33462162,597.69,596.88,0.29109437]
[1741165175095,0.33462162,597.69,596.89,0.29109437]
[1741165175295,0.33462162,597.69,596.88,0.29109437]
[1741165175494,0.33462162,597.69,596.89,0.29109437]
[1741165175696,0.33462162,597.69,596.88,0.29109437]
[1741165175896,0.33462162,597.69,596.89,0.29109437]
[1741165176101,0.33462162,597.69,597.0,1.21989884]
[1741165176302,0.33462162,597.69,597.01,0.29109437]
[1741165176696,2.62551938,597.94,597.01,0.29109437]
[1741165176901,2.62551938,597.93,597.01,0.29109437]
[1741165177203,2.62551938,597.92,597.01,0.29109437]
[1741165177398,2.62551938,597.91,597.01,0.29109437]
[1741165177598,1.0007113,598.22,597.01,0.29109437]
[1741165177599,2.62551938,597.9,597.01,0.29109437]
[1741165177795,2.62551938,597.89,597.01,0.29109437]
[1741165178001,1.19718754,597.88,597.01,0.29109437]
[1741165178403,1.19718754,597.87,597.01,0.29109437]
[1741165178703,1.19718754,597.87,597.14,1.21989884]
[1741165178903,0.29123776,597.9,597.15,0.29109437]
[1741165179102,2.62536389,597.89,597.15,0.29109437]
[1741165179302,0.29123776,597.9,597.15,0.29109437]
[1741165179502,2.62533284,597.89,597.15,0.29109437]
[1741165179803,1.19705493,597.88,597.15,0.29109437]
[1741165180498,0.29119024,597.89,597.15,0.29109437]
[1741165180897,0.29119024,597.89,597.15,1.51099321]
[1741165181098,0.29119024,597.89,597.16,0.29109437]
[1741165181897,4.34896494,597.88,597.16,0.29109437]
[1741165182102,4.34896494,597.87,597.16,0.29109437]
[1741165182297,6.82531933,597.86,597.16,0.29109437]
[1741165182498,6.82531933,597.85,597.16,0.29109437]
[1741165182702,2.62508456,597.84,597.16,0.29109437]
[1741165182903,2.62508456,597.83,597.16,0.29109437]
[1741165183101,2.62508456,597.82,597.18,1.21989884]
[1741165183304,2.62508456,597.81,597.19,0.29106037]
[1741165183501,2.62505914,597.8,597.19,0.29106037]
[1741165183808,2.62505914,597.79,597.19,0.29106037]
[1741165184108,3.82189154,597.78,597.19,0.29106037]
[1741165184303,1.1968324,597.78,597.19,0.29106037]
[1741165184506,3.82199839,597.77,597.19,0.29106037]
[1741165184707,1.1968324,597.77,597.19,0.29106037]
[1741165184900,1.1968324,597.77,597.2,0.29106877]
[1741165185106,1.1968324,597.77,597.19,0.29106877]
[1741165185305,1.1968324,597.76,597.2,0.29106877]
[1741165185510,1.1968324,597.76,597.21,0.29106877]
[1741165185704,1.1968324,597.76,597.03,0.29122801]
[1741165185705,1.1968324,597.76,597.19,0.29106877]
[1741165185902,1.1968324,597.76,597.2,0.29106877]
[1741165186108,0.29122801,597.88,597.21,0.29106877]
[1741165186306,6.82527056,597.87,597.22,0.29106877]
[1741165186505,6.82527056,597.86,597.23,0.29106877]
[1741165186712,6.82527056,597.85,597.24,0.29106877]
[1741165186906,7.15980822,597.84,597.25,0.29106877]
[1741165187113,8.35657782,597.83,597.26,0.29106877]
[1741165187310,6.82527056,597.82,597.27,0.29106877]
[1741165187611,8.02203456,597.81,597.28,0.29106877]
[1741165187812,6.82527056,597.8,597.29,0.29106877]
[1741165188013,6.82527056,597.79,596.92,0.29106877]
[1741165188213,6.82527056,597.78,596.93,0.29106877]
[1741165188409,3.82186806,597.77,596.92,0.29106877]
[1741165188614,2.62510406,597.76,596.93,0.29106877]
[1741165188815,2.62510406,597.75,596.88,0.29106877]
[1741165189115,2.62510406,597.75,590.07,15.96588989]
[1741165189116,2.62510406,597.74,596.91,0.29131212]
[1741165189414,2.62510406,597.73,596.92,0.29106877]
[1741165189614,2.62510406,597.72,596.92,0.29106877]
[1741165189813,2.62510406,597.71,596.92,0.29106877]
[1741165190113,2.62510406,597.7,596.93,0.2911094]
[1741165190314,2.62510406,597.69,596.92,0.2911094]
[1741165190513,1.196764,597.69,596.93,0.2911094]
[1741165190814,1.196764,597.69,597.02,1.21989884]
[1741165191013,1.196764,597.69,597.03,0.2911094]
[1741165191314,3.82232994,597.68,597.03,0.2911094]
[1741165191612,1.196764,597.68,597.03,0.2911094]
[1741165191813,1.196764,597.67,597.03,0.2911094]
[1741165192613,1.196764,597.66,597.03,0.2911094]
[1741165193016,0.29131212,597.76,597.03,0.2911094]
[1741165193317,2.62564601,597.75,597.04,0.2911094]
[1741165193517,2.62564601,597.74,597.01,0.2911094]
[1741165193712,2.62564601,597.73,597.02,0.2911094]
[1741165193917,2.62564601,597.72,597.03,0.2911094]
[1741165194110,3.82294811,597.71,597.04,0.2911094]
[1741165194311,2.62564601,597.7,597.05,0.2911094]
[1741165194617,2.62564601,597.69,597.06,0.2911094]
[1741165194818,2.62564601,597.68,597.01,0.2911094]
[1741165195018,1.1973021,597.69,597.07,0.2911094]
[1741165195217,2.62584939,597.68,597.08,0.2911094]
[1741165195414,2.62584939,597.67,597.01,1.51100824]
[1741165195613,1.1973021,597.68,597.02,0.2911094]
[1741165195813,1.1973021,597.66,597.02,0.2911094]
[1741165196417,1.1973021,597.65,597.02,0.2911094]
[1741165196817,0.2913048,597.71,597.02,0.2911094]
[1741165197016,0.95319333,597.7,597.02,0.2911094]
[1741165197218,0.2913048,597.71,597.02,0.2911094]
[1741165197219,0.95319333,597.69,597.02,0.2911094]
[1741165197515,0.33454326,597.83,597.02,0.2911094]
[1741165197821,8.3177332,597.82,597.02,0.2911094]
[1741165198022,2.62634153,597.81,597.02,0.2911094]
[1741165198222,3.82432339,597.8,597.02,0.2911094]
[1741165198522,2.62634153,597.79,597.02,0.2911094]
[1741165198821,3.82432339,597.78,597.02,0.2911094]
[1741165199022,3.82432339,597.77,597.02,0.2911094]
[1741165199319,2.62634153,597.76,597.02,0.2911094]
[1741165199517,2.62634153,597.75,596.92,0.2911094]
[1741165199715,3.82432339,597.74,596.93,0.2911094]
[1741165199918,1.19798186,597.74,596.92,0.2911094]
[1741165200217,1.19798186,597.74,596.91,0.29126335]
[1741165200522,1.19798186,597.73,596.92,0.29111624]
[1741165200719,1.19798186,597.73,596.82,0.29111624]
[1741165200920,0.33454326,597.83,596.83,0.29111624]
[1741165201120,3.82480872,597.82,596.82,0.29111624]
[1741165201316,8.36203821,597.81,596.83,0.29111624]
[1741165201517,7.16376836,597.8,596.83,0.29111624]
[1741165201722,4.34980668,597.79,596.84,0.58244665]
[1741165201924,6.82937159,597.78,596.85,0.29111624]
[1741165202116,6.82937159,597.77,596.85,0.29111624]
[1741165202322,6.82937159,597.76,596.86,0.29111624]
[1741165202521,2.47956491,597.75,596.87,0.29111624]
[1741165202716,6.8297563,597.74,596.88,0.29111624]
[1741165203021,6.8297563,597.73,597.02,1.21989884]
[1741165203222,8.02803175,597.72,597.03,0.29111624]
[1741165203424,6.8297563,597.71,597.03,0.29111624]
[1741165203623,6.8297563,597.7,597.03,0.29111624]
[1741165203922,6.8297563,597.69,597.03,0.29111624]
[1741165204123,6.8297563,597.68,597.03,0.29111624]
[1741165204322,6.8297563,597.67,597.03,0.29111624]
[1741165204523,6.8297563,597.66,597.03,0.29111624]
[1741165204725,4.15281032,597.65,597.03,0.29111624]
[1741165205025,4.15281032,597.64,597.03,0.29111624]
[1741165205215,8.02826904,597.63,596.9,0.29111624]
[1741165205419,6.82999359,597.62,596.91,0.29111624]
[1741165205615,8.02826904,597.61,596.89,1.21989884]
[1741165205817,6.82999359,597.6,596.9,0.29115785]
[1741165206120,6.82999359,597.59,596.9,0.29115785]
[1741165206321,6.82999359,597.58,596.9,0.29115785]
[1741165206523,2.62692422,597.57,596.9,0.29115785]
[1741165206723,2.62692422,597.56,596.9,0.29115785]
[1741165206919,2.62692422,597.55,596.9,0.29115785]
[1741165207126,2.62692422,597.54,596.9,0.29115785]
[1741165207318,2.62692422,597.53,596.9,0.29115785]
[1741165207523,2.15195426,597.52,596.84,0.29115785]
[1741165207825,1.19827545,597.51,596.84,0.29115785]
[1741165208024,0.2913426,597.66,596.84,0.29115785]
[1741165208324,6.8286002,597.65,596.84,0.29115785]
[1741165208525,6.8286002,597.64,596.84,0.29115785]
[1741165208726,6.8286002,597.63,596.84,0.29115785]
[1741165208926,6.8286002,597.62,596.85,0.29115785]
[1741165209127,8.02622032,597.61,596.86,0.29115785]
[1741165209320,6.8286002,597.6,596.86,0.29115785]
[1741165209523,6.8286002,597.59,596.87,0.29115785]
[1741165209726,8.02622032,597.58,596.88,0.29115785]
[1741165209922,6.8286002,597.57,596.89,0.29115785]
[1741165210128,8.02622032,597.56,596.9,0.29115785]
[1741165210324,2.62638469,597.55,596.91,0.29115785]
[1741165210525,2.62638469,597.54,596.92,0.29115785]
[1741165210727,3.82400481,597.53,596.93,0.29115785]
[1741165211024,2.62638469,597.52,596.79,0.29115785]
[1741165211225,1.19762012,597.53,596.8,0.29115785]
[1741165211426,1.19762012,597.52,596.81,0.29115785]
[1741165211723,0.2913426,597.66,596.89,1.21989884]
[1741165211928,6.82753287,597.65,596.9,0.29115785]
[1741165212120,6.82753287,597.64,596.9,0.29115785]
[1741165212325,3.67428079,597.63,596.9,0.29115785]
[1741165212526,2.47713612,597.62,596.9,0.29115785]
[1741165212726,1.19714467,597.63,596.9,0.29115785]
[1741165212926,0.2913426,597.66,596.9,0.29115785]
[1741165213127,2.62587732,597.65,596.9,0.29115785]
[1741165213322,0.9526576,597.64,596.9,0.29115785]
[1741165213528,1.1970424,597.64,596.9,0.29115785]
[1741165213930,0.2913426,597.66,596.9,0.29115785]
[1741165214725,1.19694903,597.65,596.91,0.29115785]
[1741165214929,1.19694903,597.65,596.85,0.29115785]
[1741165215130,1.19694903,597.65,596.86,0.29115785]
[1741165215329,0.2913426,597.66,596.87,0.29115785]
[1741165215523,2.62568445,597.65,596.85,0.29115785]
[1741165215728,0.2913426,597.66,596.88,0.29115785]
[1741165215924,1.19693047,597.64,596.89,0.29115785]
[1741165216130,1.19693047,597.64,596.9,0.29115785]
[1741165216331,1.19693047,597.64,596.91,0.29115136]
[1741165216532,0.2913426,597.66,596.92,0.29115136]
[1741165216735,0.2913426,597.66,596.87,0.29115136]
[1741165216935,0.2913426,597.66,596.88,0.29115136]
[1741165217134,0.2913426,597.66,596.89,0.29115136]
[1741165217335,0.2913426,597.66,596.9,0.29115136]
[1741165217531,0.2913426,597.66,596.91,0.29115136]
[1741165217735,0.2913426,597.66,596.92,0.29115136]
[1741165217931,0.2913426,597.66,596.86,1.21989884]
[1741165218230,0.2913426,597.66,597.04,1.21989884]
[1741165218437,0.95242842,597.65,597.05,0.29115022]
[1741165218630,0.33456005,597.8,597.05,0.29115022]
[1741165218836,6.82659919,597.79,597.05,0.29115022]
[1741165219136,6.82659919,597.78,597.05,0.29115022]
[1741165219336,6.82659919,597.77,597.05,0.29115022]
[1741165219535,6.82659919,597.76,597.05,0.29115022]
[1741165219735,6.82659919,597.75,597.05,0.29115022]
[1741165219937,6.82659919,597.74,597.06,0.29115022]
[1741165220131,8.02343608,597.73,597.03,0.29115022]
[1741165220333,6.82659919,597.72,597.04,0.29115022]
[1741165220535,6.82659919,597.71,597.03,0.29115022]
[1741165220728,6.82659919,597.7,597.04,0.29115022]
[1741165220931,8.02343608,597.69,597.03,0.29115022]
[1741165221133,6.82659919,597.68,597.03,0.29115022]
[1741165221331,6.82659919,597.67,597.03,0.29115022]
[1741165221533,6.82659919,597.66,597.04,0.29116678]
[1741165221737,8.02343608,597.65,597.05,0.29116678]
[1741165221938,6.82659919,597.64,596.92,0.29116678]
[1741165222235,6.82659919,597.63,596.93,0.29116678]
[1741165222438,6.82659919,597.62,596.94,0.29116678]
[1741165222736,0.29130115,597.76,596.91,1.21989884]
[1741165222737,6.82681997,597.61,596.95,0.29116678]
[1741165222938,6.82681997,597.6,596.96,0.29116678]